fUSD/lending_fUSD_20251112
["ID","MTS","AMOUNT","RATE_DAILY","PERIOD"]
[393729634,1762955122669,-500000.0,0.000465,120]
[393729635,1762955122700,-1000000.0,0.000465,120]
[393729636,1762955122728,-1133.72,0.00046507,30]
[393729637,1762955122758,-1133.72,0.00046507,30]
[393729638,1762955122787,-500000.0,0.000466,120]
[393729639,1762955122818,-500000.0,0.000467,120]
[393729640,1762955122848,-416689.02881524,0.0004675,120]
[393729641,1762955127430,-478.56668374,0.00042,120]
[393729642,1762955127463,-478.56668374,0.00042,30]
[393729643,1762955127510,-440.20080375,0.0004575,120]
[393729644,1762955127543,-681.78,0.0004575,120]
[393729645,1762955127577,-150.0,0.00046278,30]
[393729646,1762955127613,-83310.97118476,0.0004675,120]
[393729647,1762955127643,-911.6028945,0.0004679,90]
[393729648,1762955127679,-500000.0,0.000468,120]
[393729649,1762955127712,-605.73153571,0.000468,120]
[393729650,1762955127744,-2000.0,0.00046872,120]
[393729651,1762955127778,-500000.0,0.000469,120]
[393729652,1762955127810,-153.0,0.000469,120]
[393729653,1762955127840,-1655.58308242,0.000469,120]
[393729654,1762955127868,-212.0,0.0004698,30]
[393729655,1762955127899,-449.90709024,0.00046986,120]
[393729656,1762955127932,-500000.0,0.00047,120]
[393729657,1762955127964,-500000.0,0.00047,120]
[393729658,1762955127999,-611.0,0.00047,30]
[393729659,1762955128030,-1500.0,0.00047,30]
[393729660,1762955128060,-611.0236964,0.00047,30]
[393729661,1762955128089,-200.0,0.00047,120]
[393729662,1762955128119,-357.0430276,0.00047,120]
[393729663,1762955128149,-150.0,0.00047,50]
[393729664,1762955128178,-5597.84,0.00047,30]
[393729665,1762955128210,-500000.0,0.000471,120]
[393729666,1762955128240,-155.0,0.000471,120]
[393729667,1762955128276,-500000.0,0.000472,120]
[393729668,1762955128310,-500000.0,0.0004725,120]
[393729669,1762955128344,-500000.0,0.000473,120]
[393729670,1762955128375,-212.93735845,0.00047308,120]
[393729671,1762955128418,-623.86613322,0.00047356,60]
[393729672,1762955128449,-618.64020791,0.00047356,60]
[393729673,1762955128480,-81308.0849,0.00047444,30]
[393729674,1762955128513,-500000.0,0.000475,120]
[393729675,1762955128547,-316526.65471756,0.000475,120]
[393729676,1762955131815,-1000.0,0.00036903,30]
[393729677,1762955131845,-1000.0,0.00036903,30]
[393729678,1762955132116,-157.0,0.00045,85]
[393729679,1762955132146,-828.84260613,0.0004575,120]
[393729680,1762955132180,-183473.34528244,0.000475,120]
[393729681,1762955132213,-600000.0,0.000475,120]
[393729682,1762955132242,-769.61258493,0.000475,120]
[393729683,1762955132274,-500000.0,0.000476,120]
[393729684,1762955132305,-500000.0,0.000477,120]
[393729685,1762955132334,-153.0,0.000477,120]
[393729686,1762955132362,-500.0,0.0004779,120]
[393729687,1762955132405,-500000.0,0.000478,120]
[393729688,1762955132435,-99999.0,0.00047813,119]
[393729689,1762955132466,-2000.0,0.00047821,120]
[393729690,1762955132496,-1632.04344501,0.0004788,100]
[393729691,1762955132533,-500000.0,0.000479,120]
[393729692,1762955132563,-212.0,0.00047945,120]
[393729693,1762955132592,-2000.0,0.00047945,120]
[393729694,1762955132621,-2000.0,0.00047945,120]
[393729695,1762955132650,-2000.0,0.00047945,120]
[393729696,1762955132679,-2000.0,0.00047945,120]
[393729697,1762955132708,-2000.0,0.00047945,120]
[393729698,1762955132738,-2000.0,0.00047945,120]
[393729699,1762955132796,-2000.0,0.00047945,120]
[393729700,1762955132849,-2000.0,0.00047945,120]
[393729701,1762955132900,-2000.0,0.00047945,120]
[393729702,1762955132952,-2000.0,0.00047945,120]
[393729703,1762955133008,-50000.0,0.00048,48]
[393729704,1762955133063,-1000.0,0.00048,120]
[393729705,1762955133125,-1000000.0,0.00048,120]
[393729706,1762955133182,-1000000.0,0.00048,120]
[393729707,1762955133235,-237.93697122,0.00048,120]
[393729708,1762955133289,-492.34219774,0.00048,120]
[393729709,1762955133347,-36544.87691253,0.00048,120]
[393729710,1762955137788,-151.0,0.00040232,120]
[393729711,1762955137845,-267.706574,0.00040232,120]
[393729712,1762955137909,-463455.12308747,0.00048,120]
[393729713,1762955137963,-1543.0,0.00048,120]
[393729714,1762955138017,-159.171946,0.00048,120]
[393729715,1762955138071,-1500.0,0.00048,30]
[393729716,1762955138125,-100000.0,0.00048,120]
[393729717,1762955138185,-580.31202931,0.00048,120]
[393729718,1762955138247,-200.0,0.00048,120]
[393729719,1762955138307,-214.16,0.00048,120]
[393729720,1762955138368,-43122.35310575,0.00048,120]
[393729721,1762955138430,-200.0,0.00048,120]
[393729722,1762955138486,-949.24452174,0.00048,120]
[393729723,1762955138546,-1226.29444825,0.00048,120]
[393729724,1762955138602,-150.0,0.00048,50]
[393729725,1762955138658,-700.0,0.00048,120]
[393729726,1762955138715,-150.0,0.00048,120]
[393729727,1762955138775,-150.0,0.00048,120]
[393729728,1762955138835,-150.0,0.00048,120]
[393729729,1762955138895,-150.0,0.00048,30]
[393729730,1762955138953,-155.0,0.000481,120]
[393729731,1762955139009,-689.41,0.000481,90]
[393729732,1762955139068,-500000.0,0.0004825,120]
[393729733,1762955139124,-489.0,0.00048329,90]
[393729734,1762955139178,-153.0,0.000484,120]
[393729735,1762955139233,-500.0,0.00048459,120]
[393729736,1762955139290,-600000.0,0.000485,120]
[393729737,1762955139348,-1000000.0,0.000485,120]
[393729738,1762955139409,-1000000.0,0.000485,120]
[393729739,1762955139470,-1000000.0,0.000485,120]
[393729740,1762955139527,-282995.22428748,0.000485,120]
[393729741,1762955162563,200.0,0.00040232,30]
[393729742,1762955196121,-163.59,0.00018311,2]
[393729743,1762955196153,-161.68,0.00018312,2]
[393729744,1762955196410,-190.46620951,0.00024076,2]
[393729745,1762955214499,-339.77,0.000392,30]
[393729746,1762955214554,-2239.14,0.000392,30]
[393729747,1762955214833,-3000.0,0.0004,30]
[393729748,1762955214901,-339.77,0.000403,30]
[393729749,1762955214952,-2239.14,0.000403,30]
[393729750,1762955215003,-150.0,0.000403,60]
[393729751,1762955215060,-339.77,0.000417,30]
[393729752,1762955215112,-2239.14,0.000417,30]
[393729753,1762955215168,-500.0,0.00043356,60]
[393729754,1762955215218,-339.77,0.000434,30]
[393729755,1762955215269,-2239.14,0.000434,30]
[393729756,1762955215318,-11528.5661,0.00043444,30]
[393729757,1762955215373,-500.0,0.00044452,60]
[393729758,1762955215428,-339.77,0.000448,30]
[393729759,1762955215479,-2239.14,0.000448,30]
[393729760,1762955215528,-300.0,0.00045,120]
[393729761,1762955215579,-150.0,0.00045,120]
[393729762,1762955215639,-150.0,0.00045,120]
[393729763,1762955215694,-103377.4223,0.00045444,30]
[393729764,1762955215750,-1137.0,0.00046116,120]
[393729765,1762955215808,-1337.0,0.00046347,120]
[393729766,1762955215863,-500.0,0.00046356,60]
[393729767,1762955215916,-339.77,0.000464,30]
[393729768,1762955215968,-2239.14,0.000464,30]
[393729769,1762955216022,-1444.0,0.00046466,120]
[393729770,1762955216075,-1337.0,0.00046578,120]
[393729771,1762955216130,-244.16,0.0004735,120]
[393729772,1762955216182,-81308.0849,0.00047444,30]
[393729773,1762955216235,-500.0,0.00047452,60]
[393729774,1762955216286,-500.0,0.000477,120]
[393729775,1762955216338,-500.0,0.000477,120]
[393729776,1762955216388,-500.0,0.000477,120]
[393729777,1762955216439,-500.0,0.000477,120]
[393729778,1762955216492,-500.0,0.000477,120]
[393729779,1762955216547,-500.0,0.000477,120]
[393729780,1762955216600,-500.0,0.000477,120]
[393729781,1762955216652,-500.0,0.000477,120]
[393729782,1762955216705,-848.0,0.000477,120]
[393729783,1762955216757,-500.0,0.000477,120]
[393729784,1762955216818,-500.0,0.000477,120]
[393729785,1762955216871,-500.0,0.000477,120]
[393729786,1762955216921,-500.0,0.000477,120]
[393729787,1762955216974,-500.0,0.000477,120]
[393729788,1762955217033,-857.0,0.000477,120]
[393729789,1762955217099,-500.0,0.000477,120]
[393729790,1762955217155,-500.0,0.000477,120]
[393729791,1762955217207,-500.0,0.000477,120]
[393729792,1762955217257,-500.0,0.000477,120]
[393729793,1762955217308,-500.0,0.000477,120]
[393729794,1762955217358,-500.0,0.000477,120]
[393729795,1762955217411,-500.0,0.000477,120]
[393729796,1762955217466,-500.0,0.000477,120]
[393729797,1762955217519,-500.0,0.000477,120]
[393729798,1762955217569,-500.0,0.000477,120]
[393729799,1762955217621,-500.0,0.000477,120]
[393729800,1762955217671,-500.0,0.000477,120]
[393729801,1762955217723,-500.0,0.000477,120]
[393729802,1762955217773,-500.0,0.000477,120]
[393729803,1762955217828,-500.0,0.000477,120]
[393729804,1762955217882,-500.0,0.000477,120]
[393729805,1762955217933,-500.0,0.000477,120]
[393729806,1762955217986,-500.0,0.000477,120]
[393729807,1762955218040,-500.0,0.000477,120]
[393729808,1762955218091,-500.0,0.000477,120]
[393729809,1762955218143,-500.0,0.000477,120]
[393729810,1762955218197,-500.0,0.000477,120]
[393729811,1762955218249,-500.0,0.000477,120]
[393729812,1762955218301,-500.0,0.000477,120]
[393729813,1762955218352,-500.0,0.000477,120]
[393729814,1762955218407,-500.0,0.000477,120]
[393729815,1762955218461,-500.0,0.000477,120]
[393729816,1762955218516,-500.0,0.000477,120]
[393729817,1762955218570,-500.0,0.000477,120]
[393729818,1762955218631,-500.0,0.000477,120]
[393729819,1762955218689,-500.0,0.000477,120]
[393729820,1762955218742,-500.0,0.000477,120]
[393729821,1762955218794,-500.0,0.000477,120]
[393729822,1762955218848,-500.0,0.000477,120]
[393729823,1762955218902,-500.0,0.000477,120]
[393729824,1762955218955,-500.0,0.000477,120]
[393729825,1762955219007,-500.0,0.000477,120]
[393729826,1762955219056,-878.0,0.000477,120]
[393729827,1762955219108,-500.0,0.000477,120]
[393729828,1762955219158,-500.0,0.000477,120]
[393729829,1762955219211,-500.0,0.000477,120]
[393729830,1762955219261,-500.0,0.000477,120]
[393729831,1762955219314,-500.0,0.000477,120]
[393729832,1762955219363,-500.0,0.000477,120]
[393729833,1762955219415,-500.0,0.000477,120]
[393729834,1762955219471,-500.0,0.000477,120]
[393729835,1762955219523,-500.0,0.000477,120]
[393729836,1762955219574,-500.0,0.000477,120]
[393729837,1762955219627,-500.0,0.000477,120]
[393729838,1762955219681,-500.0,0.000477,120]
[393729839,1762955219736,-500.0,0.000477,120]
[393729840,1762955219794,-500.0,0.000477,120]
[393729841,1762955219849,-500.0,0.000477,120]
[393729842,1762955220091,-500.0,0.000477,120]
[393729843,1762955220158,-500.0,0.000477,120]
[393729844,1762955220214,-500.0,0.000477,120]
[393729845,1762955220269,-500.0,0.000477,120]
[393729846,1762955220327,-500.0,0.000477,120]
[393729847,1762955220380,-500.0,0.000477,120]
[393729848,1762955220434,-500.0,0.000477,120]
[393729849,1762955220490,-500.0,0.000477,120]
[393729850,1762955220543,-500.0,0.000477,120]
[393729851,1762955220592,-500.0,0.000477,120]
[393729852,1762955220642,-500.0,0.000477,120]
[393729853,1762955220694,-500.0,0.000477,120]
[393729854,1762955220749,-500.0,0.000477,120]
[393729855,1762955220804,-500.0,0.000477,120]
[393729856,1762955220855,-500.0,0.000477,120]
[393729857,1762955220904,-500.0,0.000477,120]
[393729858,1762955220957,-500.0,0.000477,120]
[393729859,1762955221011,-500.0,0.000477,120]
[393729860,1762955221067,-500.0,0.000477,120]
[393729861,1762955221121,-500.0,0.000477,120]
[393729862,1762955221180,-500.0,0.000477,120]
[393729863,1762955221231,-500.0,0.000477,120]
[393729864,1762955221277,-500.0,0.000477,120]
[393729865,1762955221326,-500.0,0.000477,120]
[393729866,1762955221375,-500.0,0.000477,120]
[393729867,1762955221425,-500.0,0.000477,120]
[393729868,1762955221475,-500.0,0.000477,120]
[393729869,1762955221525,-500.0,0.000477,120]
[393729870,1762955221576,-500.0,0.000477,120]
[393729871,1762955221627,-500.0,0.000477,120]
[393729872,1762955221677,-500.0,0.000477,120]
[393729873,1762955221726,-500.0,0.000477,120]
[393729874,1762955221777,-500.0,0.000477,120]
[393729875,1762955221830,-500.0,0.000477,120]
[393729876,1762955221880,-500.0,0.000477,120]
[393729877,1762955221929,-500.0,0.000477,120]
[393729878,1762955221979,-500.0,0.000477,120]
[393729879,1762955222028,-500.0,0.000477,120]
[393729880,1762955222076,-500.0,0.000477,120]
[393729881,1762955222129,-500.0,0.000477,120]
[393729882,1762955222185,-500.0,0.000477,120]
[393729883,1762955222238,-500.0,0.000477,120]
[393729884,1762955222291,-500.0,0.000477,120]
[393729885,1762955222347,-500.0,0.000477,120]
[393729886,1762955222405,-500.0,0.000477,120]
[393729887,1762955222472,-500.0,0.000477,120]
[393729888,1762955222524,-500.0,0.000477,120]
[393729889,1762955222577,-500.0,0.000477,120]
[393729890,1762955222631,-500.0,0.000477,120]
[393729891,1762955222691,-500.0,0.000477,120]
[393729892,1762955222745,-701.0,0.000477,120]
[393729893,1762955222796,-596.0,0.000477,120]
[393729894,1762955222845,-500.0,0.000477,120]
[393729895,1762955222894,-500.0,0.000477,120]
[393729896,1762955222946,-500.0,0.000477,120]
[393729897,1762955223002,-500.0,0.000477,120]
[393729898,1762955223056,-500.0,0.000477,120]
[393729899,1762955223107,-500.0,0.000477,120]
[393729900,1762955223162,-500.0,0.000477,120]
[393729901,1762955223222,-500.0,0.000477,120]
[393729902,1762955223281,-500.0,0.000477,120]
[393729903,1762955223334,-200.0,0.00048,120]
[393729904,1762955223388,-150.0,0.00048,120]
[393729905,1762955223441,-666.97,0.0004825,120]
[393729906,1762955223502,-665.73,0.0004825,120]
[393729907,1762955223559,-217004.77571252,0.000485,120]
[393729908,1762955223620,-100000.0,0.0004863,120]
[393729909,1762955223674,-1124.35196645,0.0004868,120]
[393729910,1762955223734,-500000.0,0.000487,120]
[393729911,1762955223796,-500000.0,0.0004875,120]
[393729912,1762955223853,-979.327613,0.00048769,120]
[393729913,1762955223907,-1000.0,0.000488,120]
[393729914,1762955223960,-1000.0,0.000488,120]
[393729915,1762955224011,-1000.0,0.000488,120]
[393729916,1762955224063,-1000.0,0.000488,120]
[393729917,1762955224119,-398.85,0.000488,120]
[393729918,1762955224176,-500000.0,0.000488,120]
[393729919,1762955224232,-777.85477522,0.0004888,120]
[393729920,1762955224289,-374.30574777,0.000489,120]
[393729921,1762955224345,-500000.0,0.000489,120]
[393729922,1762955224399,-212.0,0.0004899,30]
[393729923,1762955224453,-445.0,0.00048996,120]
[393729924,1762955224508,-1000000.0,0.00049,120]
[393729925,1762955224560,-520.83013784,0.00049,120]
[393729926,1762955224614,-180.47192187,0.00049,120]
[393729927,1762955224671,-500000.0,0.00049,120]
[393729928,1762955224724,-701.58644682,0.00049,90]
[393729929,1762955224777,-2355.35253533,0.00049,120]
[393729930,1762955224832,-1288.22355775,0.00049,120]
[393729931,1762955224884,-1500.0,0.00049,30]
[393729932,1762955224936,-1375.81982299,0.00049,120]
[393729933,1762955224987,-787.25838114,0.00049,30]
[393729934,1762955225040,-150.0,0.00049,50]
[393729935,1762955225092,-2000.0,0.00049,120]
[393729936,1762955225148,-873324.5980813,0.00049,120]
[393729937,1762955234827,-150.0,0.00045,120]
[393729938,1762955234889,-500.0,0.000477,120]
[393729939,1762955234948,-500.0,0.000477,120]
[393729940,1762955235005,-500.0,0.000477,120]
[393729941,1762955235061,-500.0,0.000477,120]
[393729942,1762955235117,-500.0,0.000477,120]
[393729943,1762955235177,-500.0,0.000477,120]
[393729944,1762955235260,-500.0,0.000477,120]
[393729945,1762955235322,-500.0,0.000477,120]
[393729946,1762955235385,-500.0,0.000477,120]
[393729947,1762955235449,-500.0,0.000477,120]
[393729948,1762955235510,-500.0,0.000477,120]
[393729949,1762955235570,-500.0,0.000477,120]
[393729950,1762955235632,-500.0,0.000477,120]
[393729951,1762955235697,-665.0,0.000477,120]
[393729952,1762955235765,-1725.40927409,0.00047928,120]
[393729953,1762955235829,-150.0,0.00048,120]
[393729954,1762955235901,-126675.4019187,0.00049,120]
[393729955,1762955235968,-2239.14,0.00049,30]
[393729956,1762955236029,-150.0,0.00049,30]
[393729957,1762955236091,-217.31775428,0.00049001,120]
[393729958,1762955236153,-150.0,0.00049015,30]
[393729959,1762955236218,-150.0,0.00049015,30]
[393729960,1762955236277,-194.61212321,0.00049015,30]
[393729961,1762955236328,-150.0,0.00049015,120]
[393729962,1762955236378,-150.0,0.00049015,120]
[393729963,1762955236433,-163.7947703,0.00049015,120]
[393729964,1762955236485,-150.0,0.00049015,30]
[393729965,1762955236538,-257.36782787,0.00049015,30]
[393729966,1762955236589,-153.0,0.000491,120]
[393729967,1762955236639,-155.0,0.000492,120]
[393729968,1762955236690,-413.64,0.000492,90]
[393729969,1762955236744,-500000.0,0.000493,120]
[393729970,1762955236794,-513.700026,0.00049302,120]
[393729971,1762955236852,-500.0,0.00049315,120]
[393729972,1762955236902,-500.0,0.00049315,120]
[393729973,1762955236951,-500.0,0.00049315,120]
[393729974,1762955237384,-500.0,0.00049315,120]
[393729975,1762955237453,-432.42536821,0.00049315,120]
[393729976,1762955237518,-324.16590719,0.00049315,120]
[393729977,1762955237573,-422.42202689,0.00049315,120]
[393729978,1762955237627,-466.06107422,0.00049315,120]
[393729979,1762955237681,-934.78,0.00049315,120]
[393729980,1762955237738,-500.0,0.00049315,120]
[393729981,1762955237790,-600.0,0.00049315,30]
[393729982,1762955237843,-600.0,0.00049315,30]
[393729983,1762955237896,-600.0,0.00049315,30]
[393729984,1762955237946,-692.28879367,0.00049315,30]
[393729985,1762955237996,-593.30959474,0.00049315,30]
[393729986,1762955238048,-500.0,0.00049315,33]
[393729987,1762955238096,-500.0,0.00049315,33]
[393729988,1762955238144,-156.49,0.00049338,120]
[393729989,1762955238194,-174.04,0.00049338,120]
[393729990,1762955238252,-404428.918,0.000494,120]
[393729991,1762955238303,-227.52230314,0.00049412,30]
[393729992,1762955238354,-2813.34277823,0.0004944,63]
[393729993,1762955238406,-58077.2035,0.00049444,120]
[393729994,1762955238460,-500000.0,0.000495,120]
[393729995,1762955238513,-500000.0,0.000495,120]
[393729996,1762955238560,-1161.22318543,0.000495,120]
[393729997,1762955238608,-365.76301515,0.000495,120]
[393729998,1762955238658,-2000.0,0.0004955,61]
[393729999,1762955238708,-934.78,0.00049589,120]
[393730000,1762955238756,-500.0,0.00049589,120]
[393730001,1762955238804,-150.0,0.00049641,120]
[393730002,1762955238852,-2785.0,0.0004973,120]
[393730003,1762955238899,-1542.0,0.00049731,120]
[393730004,1762955238947,-128767.55805639,0.000498,30]
[393730005,1762955238997,-934.78,0.00049863,120]
[393730006,1762955239046,-500.0,0.00049863,120]
[393730007,1762955239093,-444.999999,0.00049885,120]
[393730008,1762955239143,-153.0,0.000499,120]
[393730009,1762955239190,-2989.80934925,0.000499,120]
[393730010,1762955239242,-51672.30195,0.0004999,120]
[393730011,1762955239292,-12157.38487964,0.0004999,30]
[393730012,1762955239344,-271.35514559,0.00049999,120]
[393730013,1762955239397,-500.0,0.00049999,120]
[393730014,1762955239449,-500.0,0.00049999,120]
[393730015,1762955239504,-500.0,0.00049999,120]
[393730016,1762955239558,-499.36181703,0.00049999,120]
[393730017,1762955239612,-500.0,0.00049999,120]
[393730018,1762955239667,-500.0,0.00049999,120]
[393730019,1762955239721,-299.42563532,0.00049999,120]
[393730020,1762955239776,-500.0,0.00049999,120]
[393730021,1762955239830,-429.08513585,0.00049999,120]
[393730022,1762955239881,-445.94592211,0.00049999,120]
[393730023,1762955239933,-400.53896046,0.00049999,120]
[393730024,1762955239987,-500.0,0.00049999,120]
[393730025,1762955240037,-500.0,0.00049999,120]
[393730026,1762955240089,-539.4326992,0.00049999,120]
[393730027,1762955240139,-372.10995849,0.00049999,120]
[393730028,1762955240193,-50000.0,0.0005,90]
[393730029,1762955240245,-500.0,0.0005,120]
[393730030,1762955240293,-707.00081722,0.0005,120]
[393730031,1762955240342,-225.02803257,0.0005,120]
[393730032,1762955240394,-165.0694921,0.0005,120]
[393730033,1762955240445,-200.0,0.0005,120]
[393730034,1762955240495,-415.0,0.0005,120]
[393730035,1762955240546,-1000.0,0.0005,120]
[393730036,1762955240593,-200.0,0.0005,120]
[393730037,1762955240641,-500.0,0.0005,120]
[393730038,1762955240691,-1567.0,0.0005,120]
[393730039,1762955240746,-676000.0,0.0005,120]
[393730040,1762955240798,-200.0,0.0005,50]
[393730041,1762955240847,-200.0,0.0005,50]
[393730042,1762955240896,-1013.033,0.0005,120]
[393730043,1762955240944,-5001.4935,0.0005,30]
[393730044,1762955240993,-5789.19,0.0005,120]
[393730045,1762955241041,-8859.53,0.0005,120]
[393730046,1762955241089,-1500.0,0.0005,30]
[393730047,1762955241136,-215.81,0.0005,120]
[393730048,1762955241184,-422.61,0.0005,120]
[393730049,1762955241232,-1083.33703616,0.0005,120]
[393730050,1762955241281,-500.0,0.0005,30]
[393730051,1762955241330,-7185.00623823,0.0005,120]
[393730052,1762955241379,-616.0,0.0005,120]
[393730053,1762955241428,-217.59100313,0.0005,120]
[393730054,1762955241476,-1073.27899357,0.0005,120]
[393730055,1762955241523,-547.0,0.0005,30]
[393730056,1762955241570,-150.0,0.0005,120]
[393730057,1762955241621,-150.0,0.0005,50]
[393730058,1762955241674,-102324.90089537,0.0005,30]
[393730059,1762955241725,-339.77,0.0005,30]
[393730060,1762955241778,-934.78,0.00050136,120]
[393730061,1762955241831,-500.0,0.00050136,120]
[393730062,1762955241884,-155.0,0.000502,120]
[393730063,1762955241934,-1034.25,0.0005026,120]
[393730064,1762955241985,-2073.04,0.000503,120]
[393730065,1762955242036,-200.0,0.00050324,120]
[393730066,1762955242088,-934.78,0.0005041,120]
[393730067,1762955242138,-500.0,0.0005041,120]
[393730068,1762955242191,-1000000.0,0.000505,120]
[393730069,1762955242240,-1543.0,0.000505,120]
[393730070,1762955242301,-153.0,0.000506,120]
[393730071,1762955242355,-934.78,0.00050684,120]
[393730072,1762955242406,-500.0,0.00050684,120]
[393730073,1762955242456,-638.132,0.00050751,120]
[393730074,1762955242690,-1186.464,0.00050751,120]
[393730075,1762955242751,-1137.38645348,0.000509,120]
[393730076,1762955242803,-1000.0,0.00050911,120]
[393730077,1762955242855,-934.78,0.00050958,120]
[393730078,1762955242907,-500.0,0.00050958,120]
[393730079,1762955242956,-1000.0,0.00050999,120]
[393730080,1762955243006,-1000.0,0.00051,120]
[393730081,1762955243055,-1500.0,0.00051,30]
[393730082,1762955243103,-200.0,0.00051,120]
[393730083,1762955243154,-1434.7628538,0.00051,120]
[393730084,1762955243210,-1898.48904349,0.00051,120]
[393730085,1762955243263,-2452.5888965,0.00051,120]
[393730086,1762955243315,-150.0,0.00051,120]
[393730087,1762955243368,-1000.0,0.000512,120]
[393730088,1762955243419,-1000.0,0.000512,120]
[393730089,1762955243473,-1000.0,0.000512,120]
[393730090,1762955243527,-1000.0,0.000512,120]
[393730091,1762955243579,-155.0,0.000512,120]
[393730092,1762955243644,-934.78,0.00051232,120]
[393730093,1762955243701,-473.97588296,0.00051232,120]
[393730094,1762955243760,-153.0,0.000513,120]
[393730095,1762955243824,-3002.54,0.000513,120]
[393730096,1762955243885,-489.0,0.00051349,120]
[393730097,1762955243941,-5000.0,0.00051383,35]
[393730098,1762955243996,-934.78,0.00051506,120]
[393730099,1762955244048,-1850.19,0.000516,120]
[393730100,1762955244103,-1850.19,0.000516,120]
[393730101,1762955244157,-1850.19,0.000516,120]
[393730102,1762955244213,-150.0,0.00051772,120]
[393730103,1762955244270,-934.78,0.0005178,120]
[393730104,1762955244328,-489.0,0.00051781,120]
[393730105,1762955244386,-150.0,0.00051832,120]
[393730106,1762955244439,-1000.0,0.00051999,120]
[393730107,1762955244499,-50000.0,0.00052,92]
[393730108,1762955244554,-827.2583204,0.00052,120]
[393730109,1762955244610,-300.0,0.00052,120]
[393730110,1762955244664,-1000.0,0.00052,120]
[393730111,1762955244715,-1000.0,0.00052,90]
[393730112,1762955244767,-60000.0,0.00052,30]
[393730113,1762955244821,-739.45323994,0.00052,120]
[393730114,1762955244874,-1500.0,0.00052,30]
[393730115,1762955244926,-1460.33925472,0.00052,120]
[393730116,1762955244985,-200.0,0.00052,120]
[393730117,1762955245037,-110291.0,0.00052,120]
[393730118,1762955245089,-8330.11239841,0.00052,120]
[393730119,1762955245140,-150.0,0.00052,120]
[393730120,1762955245194,-934.78,0.00052054,120]
[393730121,1762955245570,150.0,0.00051755,30]
[393730122,1762955245665,500.0,0.00051755,30]
[393730123,1762955245742,500.0,0.00051755,30]
[393730124,1762955245815,150.0,0.00051755,30]
[393730125,1762955245921,150.0,0.00051755,30]
[393730126,1762955245988,150.0,0.00051755,30]
[393730127,1762955246061,600.0,0.00049315,30]
[393730128,1762955246118,218.314595,0.00051755,30]
[393730129,1762955246210,600.0,0.00049315,30]
[393730130,1762955246289,600.0,0.00049315,30]
[393730131,1762955246388,600.0,0.00049315,30]
[393730132,1762955246489,600.0,0.00049315,30]
[393730133,1762955246612,600.0,0.00049315,30]